Cogmind - Beta 9.4 @@@ ROGUE MODE // 2020.02.14 @ 00:27:21 Player: Hamilcar Result: Self-destructed Performance ------------- Evolutions (3) 1500 Regions Visited (6) 1200 Robots Destroyed (47) 235 Value Destroyed (1261) 1261 Prototype IDs (1) 20 Alien Tech Used (0) 0 Bonus (278) 278 TOTAL SCORE: 4494 Bonus ------- Pacifist 200 High Alert Combat Kills 78 Cogmind --------- Core Integrity 558/700 Matter 79/300 Energy 290/290 System Corruption 5% Temperature Cool (0) Movement Walking (130) Location -7/Factory Parts ------- > --- POWER (2) -------- Improved Deuterium Engine > --- PROPULSION (4) --- Titanium Leg > --- UTILITY (3) ------ Small Storage Unit > --- WEAPON (4) ------- (None) > --- INVENTORY (6) ---- Improved Carbon-fiber Leg Peak State ------------ > --- POWER ------------ Improved Ion Engine Improved Ion Engine > --- PROPULSION ------- Titanium Leg Titanium Leg Titanium Leg Titanium Leg > --- UTILITY ---------- Small Storage Unit Advanced Targeting Computer Improved Weapon Shielding > --- WEAPON ----------- Heavy Particle Gun Heavy Assault Rifle > --- INVENTORY -------- Titanium Leg Titanium Leg Light Assault Rifle Light Assault Rifle Shock Bomb Launcher Rocket Launcher [Rating: 30] Favorites ----------- Power Ion Engine Engine Ion Engine Propulsion Titanium Leg Leg Titanium Leg Utility Small Storage Unit Device Advanced Sensor Array Storage Small Storage Unit Processor Advanced Targeting Computer Hackware System Shield Protection Improved Weapon Shielding Weapon Missile Launcher Energy Gun EM Pulse Gun Ballistic Gun Light Assault Rifle Launcher Missile Launcher Build | -11 -10 -10 -9 -9 -8 -7 ------- Run | Scr Mat Min Mat Min Mat Fac Slots Evolved 6 | . . . 2 . 2 2 Power 1 | . . . 1 . . . Propulsion 2 | . . . . . 2 . Utility 1 | . . . 1 . . . Weapon 2 | . . . . . . 2 Parts Attached 44 | 6 . 1 9 2 19 7 Power 7 | 1 . . 1 1 3 1 Engine 7 | 1 . . 1 1 3 1 Core . | . . . . . . . Reactor . | . . . . . . . Propulsion 12 | 2 . . 2 . 6 2 Treads . | . . . . . . . Leg 12 | 2 . . 2 . 6 2 Wheel . | . . . . . . . Hover . | . . . . . . . Flight . | . . . . . . . Utility 7 | 1 . 1 2 . 2 1 Device 2 | . . . . . 1 1 Storage 1 | 1 . . . . . . Processor 2 | . . 1 1 . . . Hackware 1 | . . . 1 . . . Protection 1 | . . . . . 1 . Artifact . | . . . . . . . Weapon 18 | 2 . . 4 1 8 3 Energy Gun 3 | 1 . . 1 . 1 . Energy Cannon . | . . . . . . . Ballistic Gun 6 | 1 . . 2 . 3 . Ballistic Cannon . | . . . . . . . Launcher 9 | . . . 1 1 4 3 Special Weapon . | . . . . . . . Impact Weapon . | . . . . . . . Slashing Weapon . | . . . . . . . Piercing Weapon . | . . . . . . . Special Melee Weapon . | . . . . . . . Unidentified Prototypes 1 | . . . . . 1 . Parts Lost 20 | . . . 2 1 10 7 Power 6 | . . . 1 1 4 . Propulsion 5 | . . . . . 2 3 Utility 3 | . . . . . 2 1 Weapon 6 | . . . 1 . 2 3 Highest Loss Streak 7 | . . . 2 1 6 7 Average Slot Usage (%) 86 | . 85 90 93 88 89 54 Engine 11 | . 14 14 17 11 9 3 Leg 29 | . 28 28 22 22 35 26 Device 3 | . . . . . 6 6 Storage 10 | . 14 14 11 11 9 7 Processor 7 | . . 5 11 11 8 . Hackware 2 | . . . 10 11 . . Protection 1 | . . . . . 2 . Energy Gun 4 | . 14 14 8 . . . Ballistic Gun 7 | . 14 14 13 14 3 . Launcher 7 | . . . . 7 13 9 Naked Turns . | . . . . . . . Heaviest Build 33 | 12 12 12 18 16 29 33 Greatest Support 68 | 20 20 20 34 34 68 68 Greatest Overweight (x) 1 | . . . 1 . 1 1 Average Overweight (x) . | . . . . . . . Largest Inventory Capacity 6 | 6 6 6 6 6 6 6 Average Capacity 5 | 5 6 6 6 6 6 6 Most Carried 6 | 4 4 5 6 6 6 6 Average Carried 4 | 2 4 4 5 6 5 2 Final Capacity 6 | 6 6 6 6 6 6 6 Final Carried 6 | 4 4 5 6 6 6 1 Class Distribution -------------------- 100% | Mutant Dominant Class ---------------- Mutant | -10/Materials Mutant | -10/Mines Mutant | -9/Materials Mutant | -9/Mines Mutant | -8/Materials Mutant | -7/Factory Resources | -11 -10 -10 -9 -9 -8 -7 ----------- Run | Scr Mat Min Mat Min Mat Fac Matter Collected 1007 | 205 . 65 167 78 409 83 Remotely . | . . . . . . . Salvage Created 1080 | . . . 267 117 598 98 Parts 75 | . . . 18 9 44 4 Haulers Intercepted 4 | . . . 1 . 3 . Recyclers Shooed . | . . . . . . . Parts Field Recycled . | . . . . . . . Retrieved Matter . | . . . . . . . Parts Self-Destructed . | . . . . . . . Prevented . | . . . . . . . Kills | -11 -10 -10 -9 -9 -8 -7 ------- Run | Scr Mat Min Mat Min Mat Fac Combat Hostiles Destroyed 31 | . . . 9 1 17 4 Melee 1 | . . . . . . 1 Guns 7 | . . . 6 . 1 . AOE 23 | . . . 3 1 16 3 Classes Destroyed 11 | . . . 6 2 3 . Worker 4 | . . . 1 . 3 . Builder 3 | . . . . . 3 . Tunneler 1 | . . . . 1 . . Hauler 4 | . . . 1 . 3 . Recycler 1 | . . . . 1 . . Operator 1 | . . . . . 1 . Watcher 2 | . . . 1 . 1 . Swarmer 8 | . . . 4 . 4 . Grunt 13 | . . . 3 1 6 3 Sentry 9 | . . . 2 . 6 1 Hunter 1 | . . . . . 1 . Best Kill Streak 7 | . . . 4 3 7 2 Combat Bots Only 6 | . . . 4 1 6 2 Max Kills in Single Turn 5 | . . . 1 3 5 2 Gunslinging . | . . . . . . . Exploded 2 | . . . 1 1 2 2 Melee 1 | . . . . . . 1 Uniques/NPCs Destroyed . | . . . . . . . Combat | -11 -10 -10 -9 -9 -8 -7 -------- Run | Scr Mat Min Mat Min Mat Fac Damage Taken 2921 | . 16 . 538 205 1388 774 Core 420 | . . . 63 21 194 142 Absorbed by Shields . | . . . . . . . Core Remaining (%) 85 | 100 . 100 . 79 64 . Volleys Fired 67 | . . . 25 2 35 5 Largest 3 | . . . 2 2 2 3 Hottest 108 | . . . 79 56 78 108 Shots Fired 114 | . . . 50 4 51 9 Gun 63 | . . . 44 2 17 . Cannon . | . . . . . . . Launcher 51 | . . . 6 2 34 9 Special . | . . . . . . . Kinetic 45 | . . . 31 2 12 . Thermal 15 | . . . 10 . 5 . Explosive 51 | . . . 6 2 34 9 Electromagnetic 3 | . . . 3 . . . Robot Hit Streak 12 | . . . 9 1 11 12 Robot Miss Streak 2 | . . . 2 2 2 1 Penetration Max . | . . . . . . . Secondary Targets . | . . . . . . . Shots Hit Robots 76 | . . . 36 1 36 3 Core Hits 100 | . . . 18 5 61 16 Critical Hits . | . . . . . . . Critical Kills . | . . . . . . . Critical Parts Destroyed . | . . . . . . . Melee Attacks . | . . . . . . . Impact . | . . . . . . . Slashing . | . . . . . . . Piercing . | . . . . . . . Sneak Attacks . | . . . . . . . Combat Hostiles . | . . . . . . . Follow-up Attacks . | . . . . . . . Damage Inflicted 4231 | . . . 968 173 2560 530 Guns 511 | . . . 390 . 121 . Cannons . | . . . . . . . Explosions 3661 | . . . 578 173 2429 481 Melee . | . . . . . . . Ramming 59 | . . . . . 10 49 Kinetic 322 | . . . 255 . 67 . Thermal 155 | . . . 101 . 54 . Explosive 3646 | . . . 578 173 2414 481 Electromagnetic 49 | . . . 34 . 15 . Impact . | . . . . . . . Slashing . | . . . . . . . Piercing . | . . . . . . . Highest Corruption 18 | . . . . . 18 5 Average Corruption 8 | . . . . . 18 3 Corruption Purged . | . . . . . . . Effects 1 | . . . . . 1 . Data Loss (major) 1 | . . . . . 1 . Overload Shots . | . . . . . . . Overflow Damage 154 | . . . 73 . 72 9 Projectiles . | . . . . . . . Explosions 154 | . . . 73 . 72 9 Melee . | . . . . . . . Knockbacks . | . . . . . . . Impact . | . . . . . . . Kinetic . | . . . . . . . Secondary . | . . . . . . . Self-Inflicted Damage 291 | . . . 39 35 194 23 Shots 13 | . . . 2 2 8 1 Rammed 7 | . . . . . . 7 Targets Rammed 15 | . . . . . 1 14 Kicked 8 | . . . . . 1 7 Crushed . | . . . . . . . Highest Temperature 192 | . . . 192 1 51 17 Average Temperature 58 | . . . 85 1 16 16 Received Heat Transfer 840 | . . . 183 96 315 246 Siege Activations . | . . . . . . . Robots Corrupted . | . . . . . . . Combat Hostiles . | . . . . . . . Parts Fried . | . . . . . . . Impact Corruptions . | . . . . . . . Robots Melted . | . . . . . . . Combat Hostiles . | . . . . . . . Parts Melted . | . . . . . . . Heat Transferred 370 | . . . 259 . 111 . Parts Sabotaged . | . . . . . . . Parts Stolen . | . . . . . . . Parts Stripped . | . . . . . . . Power Chain Reactions . | . . . . . . . Missiles Intercepted . | . . . . . . . Alert | -11 -10 -10 -9 -9 -8 -7 ------- Run | Scr Mat Min Mat Min Mat Fac Peak Influence 677 | . . . 249 126 677 401 Average Influence 186 | . . . 89 112 298 324 Maximum Alert Level 2 | . . . 1 . 2 2 Low Security (%) 54 | 100 100 100 78 100 30 . Level 1 32 | . . . 21 . 40 89 Level 2 13 | . . . . . 28 10 Level 3 . | . . . . . . . Level 4 . | . . . . . . . Level 5 . | . . . . . . . High Security . | . . . . . . . Max Security . | . . . . . . . Squads Dispatched 4 | . . . 1 . 2 1 Investigation . | . . . . . . . Extermination . | . . . . . . . Reinforcement 4 | . . . 1 . 2 1 Assault . | . . . . . . . Garrison . | . . . . . . . Intercept . | . . . . . . . Construction Impeded 1 | . . . . . 1 . Haulers Reinforced . | . . . . . . . Stealth | -11 -10 -10 -9 -9 -8 -7 --------- Run | Scr Mat Min Mat Min Mat Fac Distress Signals 6 | . 1 . 3 . 2 . Communications Jammed . | . . . . . . . Distress Signals . | . . . . . . . Times Spotted 50 | . 3 . 14 5 22 6 Peak Tracking Total 6 | . 4 . 6 4 6 4 Tactical Retreats . | . . . . . . . Traps | -11 -10 -10 -9 -9 -8 -7 ------- Run | Scr Mat Min Mat Min Mat Fac Traps Triggered 2 | . . . 1 . 1 . Indirectly . | . . . . . . . Trap Hack Attempts . | . . . . . . . Triggered . | . . . . . . . Disarmed . | . . . . . . . Reprogrammed . | . . . . . . . Reused . | . . . . . . . Traps Extracted . | . . . . . . . Installed . | . . . . . . . Triggered . | . . . . . . . Machines | -11 -10 -10 -9 -9 -8 -7 ---------- Run | Scr Mat Min Mat Min Mat Fac Machines Disabled 4 | . . . . . 3 1 Max in Single Turn 1 | . . . . . 1 1 Machines Sabotaged . | . . . . . . . Garrisons Compromised . | . . . . . . . Overloaded Fab Kills . | . . . . . . . Fab Network Shutdowns . | . . . . . . . Hacking | -11 -10 -10 -9 -9 -8 -7 --------- Run | Scr Mat Min Mat Min Mat Fac Machines Accessed 1 | . . . 1 . . . Terminals 1 | . . . 1 . . . Fabricators . | . . . . . . . Repair Stations . | . . . . . . . Recycling Units . | . . . . . . . Scanalyzers . | . . . . . . . Garrison Access . | . . . . . . . Total Hacks 2 | . . . 2 . . . Successful 2 | . . . 2 . . . Failed . | . . . . . . . Catastrophic . | . . . . . . . Database Lockouts . | . . . . . . . Manual . | . . . . . . . Terminals 2 | . . . 2 . . . Fabricators . | . . . . . . . Repair Stations . | . . . . . . . Recycling Units . | . . . . . . . Scanalyzers . | . . . . . . . Garrison Access . | . . . . . . . Terminal Hacks 2 | . . . 2 . . . Record 1 | . . . 1 . . . Emergency Access Points 1 | . . . 1 . . . Fabricator Hacks . | . . . . . . . Repair Station Hacks . | . . . . . . . Recycling Unit Hacks . | . . . . . . . Scanalyzer . | . . . . . . . Garrison Access Hacks . | . . . . . . . Unauthorized Hacks . | . . . . . . . Terminals . | . . . . . . . Fabricators . | . . . . . . . Repair Stations . | . . . . . . . Recycling Units . | . . . . . . . Scanalyzers . | . . . . . . . Garrison Access . | . . . . . . . Data Cores Recovered . | . . . . . . . Used . | . . . . . . . Hacking Detections 1 | . . . 1 . . . Full Trace Events . | . . . . . . . Feedback Events . | . . . . . . . Feedback Blocked . | . . . . . . . Robot Schematics Acquired . | . . . . . . . Robots Built . | . . . . . . . Matter . | . . . . . . . Time . | . . . . . . . Total Robot Build Rating . | . . . . . . . Part Schematics Acquired . | . . . . . . . Parts Built . | . . . . . . . Matter . | . . . . . . . Time . | . . . . . . . Total Part Build Rating . | . . . . . . . Parts Repaired . | . . . . . . . Time . | . . . . . . . Parts Recycled . | . . . . . . . Recycled Matter . | . . . . . . . Retrieved Matter . | . . . . . . . Retrieved Components . | . . . . . . . Parts Scanalyzed . | . . . . . . . Part Schematics Acquired . | . . . . . . . Parts Damaged . | . . . . . . . Bothacking | -11 -10 -10 -9 -9 -8 -7 ------------ Run | Scr Mat Min Mat Min Mat Fac Used RIF Installer . | . . . . . . . Robots Hacked . | . . . . . . . Non-combat . | . . . . . . . Combat . | . . . . . . . Robot Hacks Applied . | . . . . . . . Relay Couplers Released . | . . . . . . . Robots Rewired . | . . . . . . . Allies Hacked . | . . . . . . . Hacks Repelled . | . . . . . . . Allies | -11 -10 -10 -9 -9 -8 -7 -------- Run | Scr Mat Min Mat Min Mat Fac Total Allies . | . . . . . . . Largest Group . | . . . . . . . Highest-Rated Group . | . . . . . . . Highest-Rated Ally . | . . . . . . . Total Orders . | . . . . . . . Ally Attacks . | . . . . . . . Total Damage . | . . . . . . . Kills . | . . . . . . . Allies Corrupted . | . . . . . . . Allies Melted . | . . . . . . . Intel | -11 -10 -10 -9 -9 -8 -7 ------- Run | Scr Mat Min Mat Min Mat Fac Robot Analysis Total . | . . . . . . . Derelict Logs Recovered 1 | . . 1 . . . . Drone Launches . | . . . . . . . Drone Recoveries . | . . . . . . . Exploration | -11 -10 -10 -9 -9 -8 -7 ------------- Run | Scr Mat Min Mat Min Mat Fac Turns Passed 1748 | 69 27 328 333 29 747 215 Spaces Moved 1059 | 50 23 266 182 16 368 154 Core 113 | 5 . . . . 4 104 Treads . | . . . . . . . Legs 946 | 45 23 266 182 16 364 50 Wheels . | . . . . . . . Hover . | . . . . . . . Flight . | . . . . . . . Fastest Speed 50 | 50 120 120 120 130 100 100 Average Speed 123 | 113 120 120 129 130 129 110 Slowest Speed 160 | 120 120 120 150 130 130 160 Overloaded Moves . | . . . . . . . Propulsion Burnouts . | . . . . . . . Robots Hopped . | . . . . . . . Cave-ins Triggered 1 | . . . . . 1 . Exploration Rate (%) 24 | 4 13 71 29 13 41 3 Regions Visited 6 Branch Regions 2 Pre-discovered Areas . | . . . . . . . Known Exits Taken . | . . . . . . . Unknown Exits Taken 6 | 1 1 1 1 1 1 . Scrap Searched 2 | . . 2 . . . . Spaces Dug 5 | . . . 5 . . . Terrain Destroyed 378 | . . . 15 26 290 47 Melee . | . . . . . . . Projectile . | . . . . . . . AOE 378 | . . . 15 26 290 47 Actions | -11 -10 -10 -9 -9 -8 -7 --------- Run | Scr Mat Min Mat Min Mat Fac Total 1369 | 59 22 274 230 19 581 184 Wait 149 | . . 7 5 . 134 3 Move 1053 | 49 22 265 181 15 367 154 Hop . | . . . . . . . Pick Up 16 | 4 . 1 3 . 7 1 Fast Attach 32 | 6 . 1 6 1 17 1 Attach 8 | . . . 2 . . 6 Detach 5 | . . . 3 . 2 . Swap 4 | . . . 1 1 2 . Drop 20 | . . . 4 . 16 . Fire 67 | . . . 25 2 35 5 Melee . | . . . . . . . Ram . | . . . . . . . Kick 15 | . . . . . 1 14 Crush . | . . . . . . . Escape Stasis . | . . . . . . . Rewire . | . . . . . . . Trap . | . . . . . . . Miscellaneous . | . . . . . . . Route ------- -11/Scrapyard -10/Materials -10/Mines -9/Materials -9/Mines -8/Materials -7/Factory History --------- Turn | Location | Event 37 | -11/Scrapyard | Discovered new exit (range 16) 70 | -11/Scrapyard | Entered Materials 81 | -10/Materials | Discovered new exit (range 12) 97 | -10/Materials | Entered Mines 274 | -10/Mines | Learned Materials garrison access intel 287 | -10/Mines | Received a Rocket Launcher from a helpful Derelict 321 | -10/Mines | Build established: Mutant 395 | -10/Mines | Discovered new exit (range 14) 425 | -10/Mines | Entered Materials 425 | -9/Materials | Evolved 2 slots: Power x1, Utility x1 726 | -9/Materials | Discovered new exit (range 10) 758 | -9/Materials | Entered Mines 769 | -9/Mines | Discovered new exit (range 10) 787 | -9/Mines | Entered Materials 787 | -8/Materials | Evolved 2 slots: Propulsion x2 788 | -8/Materials | Loaded intel: 1 garrison access location 1511 | -8/Materials | Discovered new exit (range 14) 1528 | -8/Materials | Crushed by falling debris 1528 | -8/Materials | System corruption reached 10% 1534 | -8/Materials | Entered Factory 1534 | -7/Factory | Evolved 2 slots: Weapon x2 1559 | -7/Factory | Lost 6 parts (2n2u2w) 1749 | -7/Factory | Self-destructed Last Messages --------------- 01712_ O-16 Technician destroyed. 01715_ The unstable cave ceiling collapses. 01715_ Kicked Y-54 Guardian out of the way. 01717_ The unstable cave ceiling collapses. 01718_ Kicked Y-54 Guardian out of the way. 01725_ Titanium Leg destroyed. 01731_ Missile Launcher destroyed. 01732_ Slammed into Y-54 Guardian. 01735_ Missile Launcher destroyed. 01735_ Slammed into Y-54 Guardian. 01735_ Destabilizing: System interference. 01735_ Heat Sink temporarily disabled. 01736_ Slammed into Y-54 Guardian. 01738_ Destabilizing: System corrupted (+2). 01742_ Slammed into Y-54 Guardian. 01742_ Y-54 Guardian destroyed. 01742_ Heat Sink destroyed. 01742_ System corrupted by crushing effect (+3). [Achievement: Fist Fight] 01743_ Acquired 32 matter. Map ----- +----------------------------------------------------+ | | | | | | | | | | | | | | | | | | | | | | | | | | | ##########????????################???????????????? | | #????????# # ###?????????????? | | #????????# T # #?????????????? | | ########## """" ##????????????? | | """ """" # # ] """ #????????????? | | """ """" # # """ # #?????????????? | | """ """" # # " # #?????????????? | | """ """" # # " #?????????????? | | """ """" # # #??????????????? | | """ """" # # #??????????????? | | """ """" #? # [ #####??????????? | | #??? # ! +??????????? | | #????? # @ #??????????? | | ####+############+#### ! # #######+???? | | = =* ?? | | ?? | | ?? | | ?? | | ??? | | ###+#####################+############+#######+??? | | #?# #??????# #????????????????? | | #?# = #??????# "" #????????????????? | | ??# #??????#] ! """#????????????????? | | ??# """ """ #??????# F"#????????????????? | | ??# """ """ #??????# """#????????????????? | | ??# """ """ #??????# """" "" #????????????????? | | ??# #??????# """" #????????????????? | | ??# = #??????# """" #????????????????? | | ??###########??????# """" #????????????????? | | ???????????????????# """" #????????????????? | | ???????????????????# """" #????????????????? | | ???????????????????# ?? #????????????????? | | ???????????????????###??#########????????????????? | | ?????????????????????????????????????????????????? | | ?????????????????????????????????????????????????? | | ?????????????????????????????????????????????????? | | ?????????????????????????????????????????????????? | +----------------------------------------------------+ Best States ------------- Heat Dissipation 44 Energy Generation 19 Energy Capacity 430 Matter Stores 300 Matter Capacity 300 Sight Range 16 Robot Scan Range 16 Terrain Scan Density 10 Weapon Shielding 66 Evasion (%) 40 Targeting Accuracy 8 Defensive Hacking 10 Item Schematics ----------------- None Robot Schematics ------------------ None Fabricated ------------ Nothing Alien Tech Used ----------------- None Achievements -------------- Fist Fight Remodeling Challenges ------------ None Game ------ Seed CombatLobotomyEdition Manual? 0 Play Time 00:24:55 Cumulative 41.5 hours Start 2020.02.13 @ 23:58:18 End 2020.02.14 @ 00:27:21 Sessions 1 Manual Loads 0 Difficulty Rogue Special Mode None Game No. 31 Rogue 31 Adventurer 0 Explorer 0 Win Type - Total 0 Types 0/0/0/0/0/0/0 Lore% 18 Gallery% 27 Achievement% 16 Wizard Run 0 Options --------- ASCII 0 Keyboard 1 Movement Vi Keybinds 0 Fullscreen 1 Font 28/SmallcapsGlow Map View 72x54 Tactical HUD 1 Map Filters NONE Filters NONE Steam 1 RUN: f508c9b0-7585-4307-a9f3-9f85b0e39307